[Event "13th Chennai Open 2022"]
[Site "Chennai"]
[Date "2022.06.22"]
[Round "6.12"]
[White "Pawar, Harshit"]
[Black "Rajesh, V A V"]
[Result "1/2-1/2"]
[ECO "C29"]
[WhiteElo "1961"]
[BlackElo "2358"]
[Annotator "TA"]
[PlyCount "60"]
[EventDate "2022.06.19"]
[EventType "swiss"]
[EventCountry "IND"]
[SourceTitle "playchess.com"]
[Source "ChessBase"]
[SourceQuality "1"]
[TimeControl "5400+30"]

{[%evp 11,60,0,28,19,15,25,13,0,-2,0,16,18,21,4,0,0,6,6,13,0,18,11,26,24,50,16,31,25,18,29,35,5,16,0,52,5,41,0,0,0,49,48,49,41,63,43,66,33,30,0,0]} 1. e4 {[%emt 0:00:29]} e5 {[%emt 0:02:49]} 2. Nc3 {[%emt 0:00:02]} Nf6 {[%emt 0:01:00]} 3. f4 {[%emt 0:00:02]} d5 {[%emt 0:02:57]} 4. fxe5 {[%emt 0:00:02]} Nxe4 {[%emt 0:02:01]} 5. Qf3 {[%emt 0:00:02]} Nxc3 {[%emt 0:04:02]} 6. bxc3 {[%emt 0:00:02]} Qh4+ {[%emt 0:10:56] 6...c5 gains popularity.} 7. g3 {[%emt 0:00:02] C29: Vienna Game: 2...Nf6 3 f4.} Qe4+ {[%emt 0:02:32]} 8. Qxe4 {[%emt 0:00:18]} dxe4 {[%emt 0:00:05]} 9. d4 {[%emt 0:00:54]} exd3 $1 {[%emt 0:00:34]} 10. cxd3 {[%emt 0:00:14]} Bd7 {[%emt 0:09:17] [#] ...Bc6 is the strong threat.} 11. Bg2 {[%emt 0:00:28]} Bc6 {[%emt 0:03:53] [#]} 12. Bxc6+ $146 {[%emt 0:00:02]} ({Predecessor:} 12. Nf3 Nd7 13. O-O Be7 14. d4 Nb6 15. Bd2 Nc4 16. Rf2 O-O 17. Bf1 Bd5 18. Bf4 {0-1 (40) Wittmann,K (2066)-Sattler,S (2098) Mittelfranken 2019}) 12... Nxc6 {[%emt 0:00:06]} 13. Nf3 {[%emt 0:00:16]} Be7 {[%emt 0:02:02]} 14. d4 {[%emt 0:02:08]} O-O {[%emt 0:09:44]} 15. Bf4 {[%emt 0:02:26]} Ba3 {[%emt 0:04:16]} 16. Rb1 {[%emt 0:00:27] Inhibits Bb2.} Na5 {[%emt 0:00:32]} 17. Ke2 {[%emt 0:01:33][%cal Be1e2,Be2d3,Bd3e4][%mdl 32]} c6 {[%emt 0:00:38]} 18. h4 {[%emt 0:01:40]} (18. c4 $5) 18... f6 {[%emt 0:03:41]} 19. Kd3 {[%emt 0:04:44]} fxe5 {[%emt 0:03:02]} 20. Nxe5 {[%emt 0:00:47]} Rad8 {[%emt 0:01:54]} 21. Rhd1 {[%emt 0:08:24]} Bd6 {[%emt 0:02:51]} 22. Re1 {[%emt 0:02:55]} b6 {[%emt 0:01:03]} (22... c5 $11) 23. a4 {[%emt 0:02:04]} (23. c4 $14 {was preferrable.}) 23... Rf5 {[%emt 0:11:11]} 24. Ke4 {[%emt 0:02:16]} Rff8 {[%emt 0:02:19]} 25. Kd3 {[%emt 0:00:07]} Bb8 {[%emt 0:05:40]} (25... Rf5 $11) 26. c4 $14 {[%emt 0:08:16]} Rfe8 {[%emt 0:00:44]} 27. Kc3 {[%emt 0:00:46]} Bd6 {[%emt 0:01:40]} 28. Re3 {[%emt 0:03:28] White is more active.} Be7 {[%emt 0:06:10]} 29. Rh1 {[%emt 0:03:26]} Bf6 {[%emt 0:00:18]} 30. g4 {[%emt 0:02:15]} Rf8 {[%emt 0:03:51] Weighted Error Value: White=0.14 (very precise) /Black=0.15 (very precise)} 1/2-1/2

[Event "13th Chennai Open 2022"]
[Site "Chennai"]
[Date "2022.06.22"]
[Round "6.13"]
[White "Daksh Goyal"]
[Black "Karthikeyan, P.."]
[Result "1/2-1/2"]
[ECO "A28"]
[WhiteElo "1795"]
[BlackElo "2361"]
[Annotator "TA"]
[PlyCount "60"]
[EventDate "2022.06.19"]
[EventType "swiss"]
[EventCountry "IND"]
[SourceTitle "playchess.com"]
[Source "ChessBase"]
[SourceQuality "1"]
[TimeControl "5400+30"]

{[%evp 11,60,7,10,0,21,17,22,0,0,0,1,-15,-6,-2,-2,-4,-9,-10,-4,-10,-8,-31,18,0,28,20,17,31,112,104,209,98,182,0,217,70,82,47,27,39,31,37,-62,32,49,26,55,41,35,19,39]} 1. c4 {[%emt 0:05:01]} e5 {[%emt 0:00:36]} 2. Nc3 {[%emt 0:00:06]} Nf6 {[%emt 0:00:21]} 3. Nf3 {[%emt 0:00:10]} Nc6 {[%emt 0:00:14]} 4. e3 {[%emt 0:00:04]} Bb4 {[%emt 0:01:10]} 5. Qc2 {[%emt 0:00:08]} Bxc3 {[%emt 0:01:01]} 6. Qxc3 {[%emt 0:00:08]} Qe7 {[%emt 0:00:52]} 7. b3 {[%emt 0:00:40] A28: English Opening: Four Knights Variation.} d5 $1 {[%emt 0:00:33] 7...d5 is better than 7...0-0.} 8. d4 {[%emt 0:02:11]} Bf5 {[%emt 0:00:53]} 9. dxe5 {[%emt 0:12:13]} Ne4 {[%emt 0:03:32]} 10. Qb2 {[%emt 0:00:34]} (10. Qd3 $2 Nb4 11. Qe2 Nc3 $19) 10... O-O-O {[%emt 0:02:13]} 11. a3 {[%emt 0:08:17] [#] Prevents Qb4+.} Bg4 $146 {[%emt 0:12:23] [#] Strongly threatening ...dxc4.} ({Predecessor:} 11... Nc5 12. b4 Na4 13. Qb3 Nb6 14. c5 Nc4 15. Bb2 N4xe5 16. Nxe5 Nxe5 17. Be2 Nc6 {½-½ (93) Caruana,F (2828)-Harikrishna,P (2726) Saint Louis 2019}) 12. Be2 {[%emt 0:17:05]} dxc4 {[%emt 0:11:31]} 13. bxc4 {[%emt 0:06:16]} Bxf3 {[%emt 0:10:01]} 14. Bxf3 {[%emt 0:10:08]} Nc5 {[%emt 0:00:39]} 15. O-O {[%emt 0:06:57] [#] And now Bxc6 would win.} Nxe5 {[%emt 0:00:24]} 16. Be2 {[%emt 0:01:45]} f6 {[%emt 0:02:12]} (16... Ned3 $15 17. Bxd3 (17. Qxg7 Qe6 $11) 17... Nxd3) 17. Qc2 {[%emt 0:05:12]} Qd7 {[%emt 0:07:19]} 18. Rd1 {[%emt 0:02:55]} Qa4 {[%emt 0:06:32]} 19. Qf5+ {[%emt 0:05:23]} Kb8 {[%emt 0:01:53]} ({Black should play} 19... Ned7 $1 $14) 20. Bb2 $16 {[%emt 0:01:39]} Nb3 {[%emt 0:10:27]} (20... a6 $16) 21. Qc2 {[%emt 0:01:20]} (21. Bxe5 $18 {and the rest is easy.} fxe5 22. Rxd8+ Rxd8 23. Rd1 Rxd1+ 24. Bxd1 Qxa3 25. Qd3 (25. Qxh7 a5 $17)) 21... Nc5 {[%emt 0:06:51]} (21... Nd7 $16 {was called for.}) 22. Qf5 {[%emt 0:04:05]} Nb3 {[%emt 0:03:03] Pair of Knights!} 23. Rxd8+ $40 {[%emt 0:04:34][%mdl 128] White is up to no good.} (23. Bxe5 $18 {is the precise move to win.} fxe5 24. Rxd8+ Rxd8 25. Rd1 Rxd1+ 26. Bxd1 Qxa3 27. Qd3 (27. Qxh7 a5 $17)) 23... Rxd8 {[%emt 0:00:02]} 24. Rd1 {[%emt 0:01:16]} Rxd1+ {[%emt 0:00:17]} 25. Bxd1 {[%emt 0:00:04]} Qa5 {[%emt 0:00:13][%cal Ra5e1]} 26. h4 {[%emt 0:03:56]} Qe1+ {[%emt 0:12:54]} (26... Nxc4 $2 27. Qd3 Qe1+ 28. Kh2 $18) 27. Kh2 {[%emt 0:00:02]} Qxd1 {[%emt 0:00:54]} (27... Nxc4 $2 28. Qd5 (28. Qxh7 a6 $16) 28... a6 29. Bxb3 $18) 28. Bxe5 {[%emt 0:00:03][%cal Of5h7]} Qd8 {[%emt 0:02:02]} 29. Bf4 {[%emt 0:01:25]} h6 {[%emt 0:01:22]} 30. Qb5 {[%emt 0:01:01]} Nd2 {[%emt 0:00:53] Weighted Error Value: White=0.25 (precise) /Black=0.19 (very precise)} 1/2-1/2

[Event "13th Chennai Open 2022"]
[Site "Chennai"]
[Date "2022.06.22"]
[Round "6.14"]
[White "Badrinarayanan N"]
[Black "Konguvel, Ponnuswamy"]
[Result "1/2-1/2"]
[ECO "B30"]
[WhiteElo "1574"]
[BlackElo "2331"]
[Annotator "TA"]
[PlyCount "180"]
[EventDate "2022.06.19"]
[EventType "swiss"]
[EventCountry "IND"]
[SourceTitle "playchess.com"]
[Source "ChessBase"]
[SourceQuality "1"]
[TimeControl "5400+30"]

{[%evp 9,179,-22,-20,-28,-4,-28,-14,-32,-32,-37,-32,-41,-41,-39,-16,-18,-1,-14,-17,-4,-6,-33,-21,-40,-43,-47,-16,-45,-27,-13,-18,-29,-37,-44,-41,-52,-45,-64,-64,-64,-36,-80,-64,-103,-105,-126,-126,-126,-126,-126,-126,-126,-126,-170,-151,-126,-126,-193,-126,-126,-126,-126,-126,-126,-126,-126,-126,-126,-126,-216,-182,-245,-191,-242,-126,-185,-133,-175,-126,-126,-126,-179,-152,-160,-126,-126,-126,-126,-126,-126,-126,-126,-126,-126,-87,-113,-113,-223,-226,-356,-310,-370,-368,-371,-364,-361,-368,-366,-362,-331,-334,-254,-235,-806,-693,-837,-592,-1036,-996,-1743,-1658,-1531,-1375,-1484,-1321,-1277,-1172,-29977,-29978,-29978,-29979,-29979,-29977,-29986,-29987,-29986,-29987,-29989,-29990,-29991,-29985,-29987,-29988,-29989,-29988,-29989,-29990,-29992,-29992,-29992,-29992,-29992,-29992,-29992,-29993,-29993,-29994,-29994,-29995,-29995,-29996,-29996,-29997,-29997,-29998,-29998,-29997,-29997,-29997,-29997,-29998,-29999]} 1. e4 {[%emt 0:00:39]} c5 {[%emt 0:00:12]} 2. Nf3 {[%emt 0:00:27]} e6 {[%emt 0:00:20]} 3. Nc3 {[%emt 0:00:33]} Nc6 {[%emt 0:00:26]} 4. Bc4 {[%emt 0:01:03]} a6 {[%emt 0:01:24]} 5. d3 {[%emt 0:01:59]} b5 {[%emt 0:07:04]} 6. Bb3 {[%emt 0:00:02] B30: Sicilian: 2...Nc6 3 Bb5, lines without ...g6.} d6 {[%emt 0:00:06]} 7. O-O {[%emt 0:01:07]} Nf6 {[%emt 0:00:05]} 8. Bg5 {[%emt 0:00:08] The position is equal.} Be7 {[%emt 0:00:05]} 9. a3 {[%emt 0:05:14]} O-O {[%emt 0:00:08]} 10. Qd2 {[%emt 0:00:23]} Bb7 {[%emt 0:02:22]} 11. Rfe1 {[%emt 0:01:23]} Nd7 {[%emt 0:04:40]} 12. Bxe7 {[%emt 0:00:42]} Qxe7 {[%emt 0:00:18] [#]} 13. Ne2 $146 {[%emt 0:00:31]} ({Predecessor:} 13. Qf4 Nce5 14. Ne2 Ng6 15. Qd2 Nf6 16. Ng3 Qc7 17. d4 c4 18. Ba2 Rad8 19. c3 {0-1 (32) Sadowski,C-Leal,N Sao Bento do Sul 1985}) 13... Nde5 {[%emt 0:11:25]} 14. Nxe5 {[%emt 0:00:25]} dxe5 {[%emt 0:00:28]} 15. Ba2 {[%emt 0:08:37]} Rac8 {[%emt 0:01:06]} 16. Rac1 {[%emt 0:04:09]} Rfd8 {[%emt 0:00:09]} 17. Qe3 {[%emt 0:03:20]} Nd4 {[%emt 0:04:00]} 18. c3 {[%emt 0:05:01]} Nc6 {[%emt 0:18:25]} 19. Red1 {[%emt 0:07:06]} Qd6 {[%emt 0:00:58]} 20. h4 {[%emt 0:03:53]} a5 {[%emt 0:00:33]} 21. Bb1 {[%emt 0:06:48]} h6 {[%emt 0:01:15]} 22. h5 {[%emt 0:05:33]} Ba6 {[%emt 0:01:47]} 23. g4 {[%emt 0:02:11]} Qe7 {[%emt 0:01:36]} 24. Kg2 {[%emt 0:04:40]} Rd7 {[%emt 0:02:20]} 25. Rg1 {[%emt 0:05:11]} Rcd8 {[%emt 0:00:17]} 26. Kh3 {[%emt 0:00:32]} b4 {[%emt 0:05:00]} 27. c4 {[%emt 0:01:12]} (27. cxb4 $2 Rxd3 28. Bxd3 Rxd3 $19) 27... f6 {[%emt 0:01:03] Inhibits g5.} 28. Bc2 {[%emt 0:03:22]} b3 {[%emt 0:00:48]} 29. Bb1 {[%emt 0:00:03]} Nd4 {[%emt 0:01:18]} 30. Nxd4 {[%emt 0:00:29]} Rxd4 {[%emt 0:08:30]} 31. Rc3 {[%emt 0:00:51]} a4 {[%emt 0:00:08]} 32. Rcc1 {[%emt 0:00:50]} Bb7 {[%emt 0:00:17][%cal Ba6b7,Bb7c6,Bc6e8][%mdl 32]} 33. Rg3 {[%emt 0:00:55]} (33. f3 $17) 33... R4d7 {[%emt 0:03:59]} (33... f5 $1 $19 {[%cal Rf5f4]} 34. gxf5 exf5 35. Qxh6 f4) 34. Rcg1 $17 {[%emt 0:01:55]} Qd6 {[%emt 0:00:13]} 35. Kh2 {[%emt 0:02:42]} Rf8 {[%emt 0:01:20]} 36. f3 {[%emt 0:02:02]} Bc6 {[%emt 0:02:37]} 37. R3g2 {[%emt 0:01:08]} Rdd8 {[%emt 0:01:04]} 38. Kh3 {[%emt 0:00:41]} Be8 {[%emt 0:00:05]} 39. Kh4 {[%emt 0:01:07]} (39. Kh2 $17) 39... Rd7 $1 $19 {[%emt 0:00:13]} 40. Kh3 {[%emt 0:07:27]} (40. Re1 {keeps fighting.}) 40... Kh8 {[%emt 0:02:24]} 41. Kh2 {[%emt 0:01:52] [#]} (41. Re2 $142) 41... Rc7 {[%emt 0:02:21]} (41... f5 $1 $19 {And now ...fxg4 would win.} 42. Rf2 fxg4 43. Rxg4 Rf4 44. Rxf4 exf4) 42. Kh1 {[%emt 0:00:35]} (42. Rg3 $17) 42... Qd8 {[%emt 0:00:51]} (42... f5 $19 {Strongly threatening ...fxg4.} 43. Rh2 Qd4 44. Qxd4 cxd4 45. exf5 Re7) 43. Rh2 {[%emt 0:07:20]} Qe7 {[%emt 0:03:21]} (43... f5 $19 44. Qe2 (44. exf5 $2 Bc6 $19) 44... Rcf7) 44. Rh3 {[%emt 0:01:43]} Qd6 {[%emt 0:01:17]} 45. Qe2 {[%emt 0:02:53]} (45. Rh2 $17) 45... Qd4 {[%emt 0:00:14]} 46. Qd2 {[%emt 0:00:57]} Ra7 {[%emt 0:01:30]} 47. Rhg3 {[%emt 0:00:37]} Bc6 {[%emt 0:00:24]} 48. Kh2 {[%emt 0:00:40]} Rd8 {[%emt 0:00:21]} 49. R1g2 {[%emt 0:00:20]} Be8 {[%emt 0:01:18]} 50. Kh3 {[%emt 0:00:42]} Kh7 {[%emt 0:00:15]} 51. Qf2 {[%emt 0:01:17]} f5 {[%emt 0:02:22]} 52. Qxd4 {[%emt 0:00:37]} exd4 {[%emt 0:00:37]} ({And not} 52... Rxd4 53. Rg1 $15) 53. f4 {[%emt 0:00:14] [#]} (53. g5 $17) 53... fxg4+ $1 {[%emt 0:01:02]} 54. Kxg4 {[%emt 0:00:07]} (54. Rxg4 $142 Bxh5 55. Rh4) 54... Rf7 {[%emt 0:01:18]} 55. Kf3 {[%emt 0:00:57]} Rdd7 {[%emt 0:01:28]} 56. Rh2 {[%emt 0:00:41]} Rf6 {[%emt 0:00:16] Against Rg6} 57. Rh4 {[%emt 0:00:31]} Rdf7 {[%emt 0:00:24]} 58. Rgg4 {[%emt 0:00:27]} Bc6 {[%emt 0:00:25] Hoping for ...e5.} 59. Kg3 {[%emt 0:00:02]} Rf8 {[%emt 0:01:10]} 60. Rh2 {[%emt 0:00:28]} Rg8 {[%emt 0:01:01]} 61. Rg2 $2 {[%emt 0:00:51]} (61. Rh1) 61... g5 {[%emt 0:01:25]} 62. fxg5 {[%emt 0:00:45]} Rxg5 {[%emt 0:00:43]} 63. Rxg5 {[%emt 0:00:25]} hxg5 {[%emt 0:00:04][%mdl 4096] Endgame KRB-KRB} 64. Rg1 {[%emt 0:00:16]} Kh6 {[%emt 0:00:06]} 65. Rh1 {[%emt 0:00:02]} Rf4 {[%emt 0:00:18]} 66. Kg2 {[%emt 0:00:24]} Be8 {[%emt 0:00:22]} 67. Rc1 {[%emt 0:00:30]} Bxh5 {[%emt 0:00:10]} 68. Bc2 {[%emt 0:00:18]} bxc2 {[%emt 0:00:12] Black mates.} 69. Rxc2 {[%emt 0:00:01] KRB-KR} Kg6 {[%emt 0:02:08]} 70. Rd2 {[%emt 0:00:57]} Kf6 {[%emt 0:00:09]} 71. Kg3 {[%emt 0:00:33]} Rf3+ {[%emt 0:00:25]} 72. Kg2 {[%emt 0:00:02]} Ke5 {[%emt 0:00:12]} 73. b3 {[%emt 0:00:11]} axb3 {[%emt 0:00:06]} 74. a4 {[%emt 0:00:02]} Rf8 {[%emt 0:00:42]} 75. Rb2 {[%emt 0:00:09]} Bd1 {[%emt 0:00:13]} 76. a5 {[%emt 0:00:06]} Ra8 {[%emt 0:00:10]} 77. Kf2 {[%emt 0:00:03]} Rxa5 {[%emt 0:00:06]} 78. Ke1 {[%emt 0:00:03]} Bc2 {[%emt 0:00:12]} 79. Kd2 {[%emt 0:00:06]} Ra2 {[%emt 0:00:36]} 80. Kc1 {[%emt 0:00:10]} Rxb2 {[%emt 0:00:23]} 81. Kxb2 {[%emt 0:00:01] KB-K3P} g4 {[%emt 0:00:07]} 82. Ka1 {[%emt 0:00:02]} g3 {[%emt 0:00:07]} 83. Kb2 {[%emt 0:00:02]} g2 {[%emt 0:00:05]} 84. Ka3 {[%emt 0:00:07]} g1=Q {[%emt 0:00:21][%cal Rg1a1]} 85. Ka4 {[%emt 0:00:04]} b2+ {[%emt 0:00:23]} 86. Kb5 {[%emt 0:00:01]} b1=Q+ {[%emt 0:11:22]} 87. Kc6 {[%emt 0:00:03]} Ba4+ {[%emt 0:00:00]} 88. Kxc5 {[%emt 0:00:07]} Qxd3 {[%emt 0:00:00]} 89. Kb4 {[%emt 0:00:16]} Qgb1+ {[%emt 0:00:00]} 90. Kc5 {[%emt 0:00:04]} Qa3# {[%emt 0:00:00][%mdl 32768] Weighted Error Value: White=0.20 (precise) /Black=0.09 (flawless) . An unexpected result.} 1/2-1/2

[Event "13th Chennai Open 2022"]
[Site "Chennai"]
[Date "2022.06.22"]
[Round "6.15"]
[White "Saravana, Krishnan P."]
[Black "Mithun Anand V"]
[Result "1-0"]
[ECO "B50"]
[WhiteElo "2269"]
[BlackElo "1672"]
[Annotator "NA RC"]
[PlyCount "57"]
[EventDate "2022.06.19"]
[EventType "swiss"]
[EventCountry "IND"]
[SourceTitle "playchess.com"]
[Source "ChessBase"]
[SourceQuality "1"]
[TimeControl "5400+30"]

{[%evp 8,40,8,0,32767,32767,3,0,32767,0,-7,-23,-16,-45,32767,-54,-41,-50,32767,32767,0,0,4,-20,32767,32767,-4,32767,32767,-15,-15,32767,32767,-73,129]} 1. e4 {[%emt 0:00:03]} c5 {[%emt 0:00:01]} 2. Nf3 {[%emt 0:00:14]} d6 {[%emt 0:00:02]} 3. Bc4 {[%emt 0:00:18]} Nf6 {[%emt 0:00:50]} 4. Qe2 {[%emt 0:00:08]} Nc6 {[%emt 0:01:42]} 5. c3 {[%emt 0:00:06]} a6 {[%emt 0:04:45]} 6. Bb3 {[%emt 0:00:39]} Bg4 {[%emt 0:08:14]} 7. h3 {[%emt 0:00:23]} Bh5 {[%emt 0:00:29]} 8. d3 {[%emt 0:01:29]} e6 {[%emt 0:00:35]} 9. Nbd2 {[%emt 0:03:04]} Be7 {[%emt 0:02:29]} 10. Nf1 {[%emt 0:03:41]} d5 {[%emt 0:02:29]} 11. g4 {[%emt 0:04:19]} Bg6 $1 {[%emt 0:04:04]} 12. Ng3 {[%emt 0:05:22]} c4 {[%emt 0:10:44]} 13. dxc4 {[%emt 0:11:11]} Nxe4 {[%emt 0:04:31]} 14. cxd5 {[%emt 0:01:19]} exd5 {[%emt 0:01:09]} 15. Nf5 {[%emt 0:11:04]} Bxf5 {[%emt 0:09:16]} 16. gxf5 {[%emt 0:00:18]} Qd7 {[%emt 0:01:42]} 17. Be3 {[%emt 0:03:28]} Qxf5 {[%emt 0:04:01]} 18. O-O-O {[%emt 0:00:23]} Rd8 {[%emt 0:00:56]} 19. Rd3 {[%emt 0:04:41]} O-O {[%emt 0:03:15]} 20. Rhd1 $17 {[%emt 0:00:22]} b5 $2 {[%emt 0:02:45]} ({Much weaker is} 20... Qxh3 $6 21. Bxd5 Nf6 22. Bxc6 bxc6 23. Nd4 $11) (20... g6 $17 21. Bb6 Rd7) 21. Bxd5 {[%emt 0:15:07]} Na5 {[%emt 0:05:18]} 22. Bb6 {[%emt 0:10:37]} Nxc3 {[%emt 0:29:38]} 23. Rxc3 {[%emt 0:04:07]} Rxd5 {[%emt 0:00:49]} 24. Rxd5 {[%emt 0:00:19]} Qxd5 {[%emt 0:00:06]} 25. Qxe7 {[%emt 0:00:07]} Nc4 {[%emt 0:01:22]} 26. Bd4 {[%emt 0:01:02]} a5 {[%emt 0:01:01]} 27. b3 {[%emt 0:02:06]} Na3 {[%emt 0:01:03]} 28. Qe5 {[%emt 0:00:10]} Qd7 {[%emt 0:00:21]} 29. Qxg7# {[%emt 0:00:08]} 1-0

[Event "13th Chennai Open 2022"]
[Site "Chennai"]
[Date "2022.06.22"]
[Round "6.16"]
[White "Jubin Jimmy"]
[Black "Jai Sankar Subramanian"]
[Result "1-0"]
[ECO "D75"]
[WhiteElo "2259"]
[BlackElo "1635"]
[Annotator "NA RC"]
[PlyCount "85"]
[EventDate "2022.06.19"]
[EventType "swiss"]
[EventCountry "IND"]
[SourceTitle "playchess.com"]
[Source "ChessBase"]
[SourceQuality "1"]
[TimeControl "5400+30"]

1. d4 {[%emt 0:00:03]} Nf6 {[%emt 0:00:01]} 2. c4 {[%emt 0:00:06]} g6 {[%emt 0:00:02]} 3. g3 {[%emt 0:00:06]} Bg7 {[%emt 0:00:03]} 4. Bg2 {[%emt 0:00:05]} d5 {[%emt 0:00:04]} 5. cxd5 {[%emt 0:00:06]} Nxd5 {[%emt 0:00:03]} 6. Nc3 {[%emt 0:00:15]} Nxc3 {[%emt 0:00:04]} 7. bxc3 {[%emt 0:00:04]} c5 {[%emt 0:00:04]} 8. Nf3 {[%emt 0:00:26]} O-O {[%emt 0:00:05]} 9. O-O {[%emt 0:01:02]} cxd4 {[%emt 0:00:13]} 10. cxd4 {[%emt 0:03:04]} Nc6 {[%emt 0:00:02]} 11. Bb2 {[%emt 0:03:12]} Bg4 {[%emt 0:02:38]} 12. e3 {[%emt 0:02:15]} Na5 {[%emt 0:01:09]} 13. Rc1 {[%emt 0:02:06]} Be6 {[%emt 0:01:47]} 14. Bc3 {[%emt 0:04:09]} Nc6 {[%emt 0:08:34]} 15. Qa4 $11 {[%emt 0:09:16]} (15. Qe2 $16) 15... Qd7 {[%emt 0:12:34]} 16. Rfd1 {[%emt 0:12:24]} Bd5 {[%emt 0:05:32]} (16... Rfc8 $14) 17. Ne5 {[%emt 0:08:49]} Nxe5 {[%emt 0:02:01]} 18. Qxd7 {[%emt 0:00:08] Remove Defender} Nxd7 {[%emt 0:00:02]} 19. Bxd5 {[%emt 0:00:08]} Nb6 {[%emt 0:21:53]} 20. Bxb7 {[%emt 0:03:58]} Rab8 {[%emt 0:00:00]} 21. Ba6 {[%emt 0:01:27]} Nd5 {[%emt 0:02:27]} 22. Ba5 {[%emt 0:02:40]} Rb2 {[%emt 0:01:39]} 23. Bc4 {[%emt 0:04:02]} Nf6 {[%emt 0:00:02]} 24. Bb3 {[%emt 0:00:42]} Ng4 {[%emt 0:01:49]} 25. Be1 {[%emt 0:03:10]} Bh6 {[%emt 0:04:45]} 26. Rd3 {[%emt 0:00:28]} e5 {[%emt 0:01:04]} 27. h3 {[%emt 0:00:39]} e4 {[%emt 0:00:49]} 28. Rdc3 {[%emt 0:00:50]} Nf6 {[%emt 0:35:04]} 29. Rc6 {[%emt 0:00:02]} Nh5 {[%emt 0:00:00]} 30. Kf1 {[%emt 0:04:08]} Nxg3+ {[%emt 0:00:00]} 31. fxg3 {[%emt 0:00:58]} Bxe3 {[%emt 0:00:00]} 32. R1c2 {[%emt 0:01:50]} Rb1 {[%emt 0:00:00]} 33. d5 {[%emt 0:00:15]} f5 {[%emt 0:00:00]} 34. Ke2 {[%emt 0:01:46]} Bb6 {[%emt 0:00:00]} 35. Rc1 {[%emt 0:01:47]} Rb2+ {[%emt 0:00:00]} 36. R6c2 {[%emt 0:00:03]} Rxc2+ {[%emt 0:00:00]} 37. Rxc2 {[%emt 0:00:02]} g5 {[%emt 0:00:00]} 38. Bb4 {[%emt 0:00:17]} Rb8 {[%emt 0:00:00]} 39. Bd6 {[%emt 0:01:49]} Ra8 {[%emt 0:00:00]} 40. Ba4 {[%emt 0:01:01]} Kg7 {[%emt 0:00:00]} 41. Be5+ {[%emt 0:01:26]} Kg6 {[%emt 0:00:00]} 42. Rc6+ {[%emt 0:00:04]} Kh5 {[%emt 0:00:00]} 43. Bg7 {[%emt 0:00:16]} 1-0

[Event "13th Chennai Open 2022"]
[Site "Chennai"]
[Date "2022.06.22"]
[Round "6.18"]
[White "Swayham P Das"]
[Black "Nguyen, Van Huy"]
[Result "1/2-1/2"]
[ECO "B13"]
[WhiteElo "1825"]
[BlackElo "2405"]
[Annotator "TA"]
[PlyCount "71"]
[EventDate "2022.06.19"]
[EventType "swiss"]
[EventCountry "IND"]
[SourceTitle "playchess.com"]
[Source "ChessBase"]
[SourceQuality "1"]
[TimeControl "5400+30"]

{[%evp 21,71,15,22,8,16,4,11,11,20,8,27,32,31,32,21,20,30,30,27,27,32,14,5,0,22,15,24,30,16,6,6,-20,-33,-23,0,0,-12,-17,0,0,0,0,0,0,8,0,0,0,10,0,0,0]} 1. e4 {[%emt 0:00:07]} c6 {[%emt 0:00:17]} 2. d4 {[%emt 0:00:10]} d5 {[%emt 0:00:04]} 3. exd5 {[%emt 0:00:17]} cxd5 {[%emt 0:00:15]} 4. Bd3 {[%emt 0:00:06]} Nc6 {[%emt 0:00:13]} 5. c3 {[%emt 0:00:07]} Nf6 {[%emt 0:00:09]} 6. Bf4 {[%emt 0:00:06]} Bg4 {[%emt 0:00:16]} 7. Nf3 {[%emt 0:00:28]} e6 {[%emt 0:00:45]} 8. h3 {[%emt 0:00:07]} Bh5 {[%emt 0:00:33]} 9. Nbd2 {[%emt 0:00:07]} Bd6 {[%emt 0:01:19]} 10. Bxd6 {[%emt 0:00:07]} Qxd6 {[%emt 0:00:05]} 11. O-O {[%emt 0:01:41]} O-O {[%emt 0:00:15]} 12. Re1 {[%emt 0:00:26] B13: Caro-Kann: Exchange Variation and Panov-Botvinnik Attack.} Rab8 {[%emt 0:02:25]} 13. Qe2 {[%emt 0:00:43]} Qc7 {[%emt 0:04:39]} 14. a4 {[%emt 0:06:20]} Rfe8 {[%emt 0:05:14][%cal Oe6e5]} 15. Qe3 {[%emt 0:00:57] [#] Against e5} a6 $146 {[%emt 0:02:42]} ({Predecessor:} 15... Bg6 16. Bxg6 hxg6 17. Qd3 Rbc8 18. Ne5 Nxe5 19. Rxe5 Nd7 20. Re2 Qa5 21. Nf3 a6 {0-1 (57) Martinez Alcantara,J (2620)-Najer,E (2648) Chess.com INT 2020}) 16. Ne5 {[%emt 0:01:31]} (16. Qg5 {keeps more tension.} Bxf3 17. Nxf3 Nd7 18. Rad1) 16... Bg6 {[%emt 0:05:51]} 17. Nxg6 {[%emt 0:04:26]} hxg6 {[%emt 0:02:15]} 18. Nf3 {[%emt 0:00:23]} Nd7 {[%emt 0:02:58]} 19. Bf1 {[%emt 0:06:30]} Na5 {[%emt 0:02:41]} 20. Nd2 {[%emt 0:01:31]} Nb6 {[%emt 0:03:56]} 21. b3 {[%emt 0:01:21]} Rbc8 {[%emt 0:02:21]} 22. Rec1 {[%emt 0:03:19]} Red8 {[%emt 0:01:17]} 23. Qg5 {[%emt 0:08:35]} Qd6 {[%emt 0:09:01]} 24. h4 {[%emt 0:01:55]} Nc6 {[%emt 0:01:57]} 25. Nf3 {[%emt 0:04:50]} Nd7 {[%emt 0:01:36][%cal Bb6d7,Bd7f6,Bf6e4][%mdl 32]} 26. h5 {[%emt 0:02:48]} gxh5 {[%emt 0:03:14]} 27. Qxh5 {[%emt 0:00:21]} Nf6 {[%emt 0:00:56]} (27... g6 $5 {[%cal Rg6h5]} 28. Qh6 Qf8 $11) 28. Qg5 {[%emt 0:01:44] The position is equal.} Ne4 {[%emt 0:03:34]} 29. Qe3 {[%emt 0:00:28]} e5 {[%emt 0:04:22]} 30. c4 {[%emt 0:17:08]} exd4 {[%emt 0:17:51]} 31. Nxd4 {[%emt 0:00:09]} Ne5 {[%emt 0:03:01] [#] White must now prevent ...Ng4. Pair of Knights!} 32. Be2 {[%emt 0:00:09] Against Ng4} Nf6 {[%emt 0:05:39]} (32... dxc4 $2 33. Nf5 Qf6 34. Qxe4 $18) 33. Qg3 {[%emt 0:04:04] Prevents Neg4. aiming for Nf5.} Ne4 {[%emt 0:01:23]} 34. Qe3 {[%emt 0:00:05]} Nf6 {[%emt 0:00:16]} (34... dxc4 $2 35. Nf5 Qf6 36. Qxe4 $18) 35. Qg3 {[%emt 0:00:04] [#] Against Neg4. Threatens to win with Nf5.} Ne4 {[%emt 0:01:42]} 36. Qe3 {[%emt 0:00:05] Weighted Error Value: White=0.04 (flawless) /Black=0.06 (flawless)} 1/2-1/2